{"text_format":"3","workbook":"xlsx","n_sheets":3,"sheets":["График за деня","Планиране на събития","Времеви интервали"],"not_rendered":{"images":1,"defined_names":21},"read":"whole","date_system":"1900"}

{"sheet":"График за деня","index":0,"n_rows":75,"n_cols":13,"rows_kept":75,"merged":[[1,1,5,2],[2,12,4,12],[3,7,4,7],[5,12,7,12],[6,1,8,2],[8,12,10,12],[9,7,10,7],[10,1,10,2],[11,12,13,12],[14,12,16,12],[15,7,16,7],[17,12,19,12],[18,1,18,2],[20,12,22,12],[21,7,22,7],[23,12,25,12],[25,1,25,2],[26,7,27,7],[26,12,28,12],[29,12,31,12],[31,7,32,7],[32,12,34,12]]}
[null,"График за деня"]
[null,{"$f":"IFERROR(DAY(СтойностЗаДата),\"\")","v":6},null,null,"Час",{"$f":"IFERROR(UPPER(TEXT(DATE(ГодинаОтчет,НомерМесец,ДенОтчет),\"DD MMMM YYYY\")),\"\")","v":"06 СЕПТЕМВРИ 2019"},null,"СЕДМИЦАТА С ЕДИН ПОГЛЕД",{"$nulls":3},"БЕЛЕЖКИ/СПИСЪК СЪС ЗАДАЧИ"]
[{"$nulls":4},{"$f":"'Времеви интервали'!E3","v":"06:00:00"},{"$f":"IFERROR(INDEX(ПланиранеНаСъбития[],MATCH(DATEVALUE(СтойностЗаДата)&ГрафикЗаДеня[[#This Row],[Час]],ТърсенеНаДатаИЧас,0),3),\"\")","v":"Събуждане"},null,{"$f":"IFERROR(TEXT(DATEVALUE(СтойностЗаДата)+1,\"dddd\"),\"\")","v":"събота"},{"$f":"IFERROR(INDEX(ПланиранеНаСъбития[],MATCH($H$6&\"|\"&ROW(A1),ПланиранеНаСъбития[УНИКАЛНА СТОЙНОСТ \n(ИЗЧИСЛЕНА)],0),2),\"\")","v":"06:30:00"},{"$f":"IFERROR(INDEX(ПланиранеНаСъбития[],MATCH($H$6&\"|\"&ROW(A1),ПланиранеНаСъбития[УНИКАЛНА СТОЙНОСТ \n(ИЗЧИСЛЕНА)],0),3),\"\")","v":"Закуска"},null,null,"Взимане от химическо чистене"]
[{"$nulls":4},{"$f":"'Времеви интервали'!E4","v":"06:15:00"},{"$f":"IFERROR(INDEX(ПланиранеНаСъбития[],MATCH(DATEVALUE(СтойностЗаДата)&ГрафикЗаДеня[[#This Row],[Час]],ТърсенеНаДатаИЧас,0),3),\"\")","v":""},null,{"$f":"IFERROR(TEXT(DATEVALUE(СтойностЗаДата)+1,\"d\"),\"\")","v":"7"},{"$f":"IFERROR(INDEX(ПланиранеНаСъбития[],MATCH($H$6&\"|\"&ROW(A2),ПланиранеНаСъбития[УНИКАЛНА СТОЙНОСТ \n(ИЗЧИСЛЕНА)],0),2),\"\")","v":"07:30:00"},{"$f":"IFERROR(INDEX(ПланиранеНаСъбития[],MATCH($H$6&\"|\"&ROW(A2),ПланиранеНаСъбития[УНИКАЛНА СТОЙНОСТ \n(ИЗЧИСЛЕНА)],0),3),\"\")","v":"Излизане за работа"}]
[{"$nulls":4},{"$f":"'Времеви интервали'!E5","v":"06:30:00"},{"$f":"IFERROR(INDEX(ПланиранеНаСъбития[],MATCH(DATEVALUE(СтойностЗаДата)&ГрафикЗаДеня[[#This Row],[Час]],ТърсенеНаДатаИЧас,0),3),\"\")","v":"Душ"},null,null,{"$f":"IFERROR(INDEX(ПланиранеНаСъбития[],MATCH($H$6&\"|\"&ROW(A3),ПланиранеНаСъбития[УНИКАЛНА СТОЙНОСТ \n(ИЗЧИСЛЕНА)],0),2),\"\")","v":""},{"$f":"IFERROR(INDEX(ПланиранеНаСъбития[],MATCH($H$6&\"|\"&ROW(A3),ПланиранеНаСъбития[УНИКАЛНА СТОЙНОСТ \n(ИЗЧИСЛЕНА)],0),3),\"\")","v":""}]
[{"$nulls":4},{"$f":"'Времеви интервали'!E6","v":"06:45:00"},{"$f":"IFERROR(INDEX(ПланиранеНаСъбития[],MATCH(DATEVALUE(СтойностЗаДата)&ГрафикЗаДеня[[#This Row],[Час]],ТърсенеНаДатаИЧас,0),3),\"\")","v":""},null,{"$f":"IFERROR(СтойностЗаДата+1,\"\")","v":"2019-09-07"},{"$f":"IFERROR(INDEX(ПланиранеНаСъбития[],MATCH($H$6&\"|\"&ROW(A4),ПланиранеНаСъбития[УНИКАЛНА СТОЙНОСТ \n(ИЗЧИСЛЕНА)],0),2),\"\")","v":""},{"$f":"IFERROR(INDEX(ПланиранеНаСъбития[],MATCH($H$6&\"|\"&ROW(A4),ПланиранеНаСъбития[УНИКАЛНА СТОЙНОСТ \n(ИЗЧИСЛЕНА)],0),3),\"\")","v":""},null,null,"Обаждане на фирмата за кабелна"]
[null,{"$f":"IFERROR(TEXT(СтойностЗаДата,\"dddd\"),\"\")","v":"петък"},null,null,{"$f":"'Времеви интервали'!E7","v":"07:00:00"},{"$f":"IFERROR(INDEX(ПланиранеНаСъбития[],MATCH(DATEVALUE(СтойностЗаДата)&ГрафикЗаДеня[[#This Row],[Час]],ТърсенеНаДатаИЧас,0),3),\"\")","v":""},null,null,{"$f":"IFERROR(INDEX(ПланиранеНаСъбития[],MATCH($H$6&\"|\"&ROW(A5),ПланиранеНаСъбития[УНИКАЛНА СТОЙНОСТ \n(ИЗЧИСЛЕНА)],0),2),\"\")","v":""},{"$f":"IFERROR(INDEX(ПланиранеНаСъбития[],MATCH($H$6&\"|\"&ROW(A5),ПланиранеНаСъбития[УНИКАЛНА СТОЙНОСТ \n(ИЗЧИСЛЕНА)],0),3),\"\")","v":""}]
[{"$nulls":4},{"$f":"'Времеви интервали'!E8","v":"07:15:00"},{"$f":"IFERROR(INDEX(ПланиранеНаСъбития[],MATCH(DATEVALUE(СтойностЗаДата)&ГрафикЗаДеня[[#This Row],[Час]],ТърсенеНаДатаИЧас,0),3),\"\")","v":""},null,null,{"$f":"IFERROR(INDEX(ПланиранеНаСъбития[],MATCH($H$6&\"|\"&ROW(A6),ПланиранеНаСъбития[УНИКАЛНА СТОЙНОСТ \n(ИЗЧИСЛЕНА)],0),2),\"\")","v":""},{"$f":"IFERROR(INDEX(ПланиранеНаСъбития[],MATCH($H$6&\"|\"&ROW(A6),ПланиранеНаСъбития[УНИКАЛНА СТОЙНОСТ \n(ИЗЧИСЛЕНА)],0),3),\"\")","v":""}]
[{"$nulls":4},{"$f":"'Времеви интервали'!E9","v":"07:30:00"},{"$f":"IFERROR(INDEX(ПланиранеНаСъбития[],MATCH(DATEVALUE(СтойностЗаДата)&ГрафикЗаДеня[[#This Row],[Час]],ТърсенеНаДатаИЧас,0),3),\"\")","v":"Излизане за работа"},null,{"$f":"IFERROR(TEXT(DATEVALUE(СтойностЗаДата)+2,\"dddd\"),\"\")","v":"неделя"},{"$f":"IFERROR(INDEX(ПланиранеНаСъбития[],MATCH($H$12&\"|\"&ROW(A1),ПланиранеНаСъбития[УНИКАЛНА СТОЙНОСТ \n(ИЗЧИСЛЕНА)],0),2),\"\")","v":""},{"$f":"IFERROR(INDEX(ПланиранеНаСъбития[],MATCH($H$12&\"|\"&ROW(A1),ПланиранеНаСъбития[УНИКАЛНА СТОЙНОСТ \n(ИЗЧИСЛЕНА)],0),3),\"\")","v":""}]
[{"$nulls":4},{"$f":"'Времеви интервали'!E10","v":"07:45:00"},{"$f":"IFERROR(INDEX(ПланиранеНаСъбития[],MATCH(DATEVALUE(СтойностЗаДата)&ГрафикЗаДеня[[#This Row],[Час]],ТърсенеНаДатаИЧас,0),3),\"\")","v":""},null,{"$f":"IFERROR(TEXT(DATEVALUE(СтойностЗаДата)+2,\"d\"),\"\")","v":"8"},{"$f":"IFERROR(INDEX(ПланиранеНаСъбития[],MATCH($H$12&\"|\"&ROW(A2),ПланиранеНаСъбития[УНИКАЛНА СТОЙНОСТ \n(ИЗЧИСЛЕНА)],0),2),\"\")","v":""},{"$f":"IFERROR(INDEX(ПланиранеНаСъбития[],MATCH($H$12&\"|\"&ROW(A2),ПланиранеНаСъбития[УНИКАЛНА СТОЙНОСТ \n(ИЗЧИСЛЕНА)],0),3),\"\")","v":""}]
[null,"ПОКАЗВАНЕ НА ГРАФИКА",null,null,{"$f":"'Времеви интервали'!E11","v":"08:00:00"},{"$f":"IFERROR(INDEX(ПланиранеНаСъбития[],MATCH(DATEVALUE(СтойностЗаДата)&ГрафикЗаДеня[[#This Row],[Час]],ТърсенеНаДатаИЧас,0),3),\"\")","v":"Начало на смяната"},null,null,{"$f":"IFERROR(INDEX(ПланиранеНаСъбития[],MATCH($H$12&\"|\"&ROW(A3),ПланиранеНаСъбития[УНИКАЛНА СТОЙНОСТ \n(ИЗЧИСЛЕНА)],0),2),\"\")","v":""},{"$f":"IFERROR(INDEX(ПланиранеНаСъбития[],MATCH($H$12&\"|\"&ROW(A3),ПланиранеНаСъбития[УНИКАЛНА СТОЙНОСТ \n(ИЗЧИСЛЕНА)],0),3),\"\")","v":""}]
[{"$nulls":4},{"$f":"'Времеви интервали'!E12","v":"08:15:00"},{"$f":"IFERROR(INDEX(ПланиранеНаСъбития[],MATCH(DATEVALUE(СтойностЗаДата)&ГрафикЗаДеня[[#This Row],[Час]],ТърсенеНаДатаИЧас,0),3),\"\")","v":""},null,{"$f":"IFERROR(СтойностЗаДата+2,\"\")","v":"2019-09-08"},{"$f":"IFERROR(INDEX(ПланиранеНаСъбития[],MATCH($H$12&\"|\"&ROW(A4),ПланиранеНаСъбития[УНИКАЛНА СТОЙНОСТ \n(ИЗЧИСЛЕНА)],0),2),\"\")","v":""},{"$f":"IFERROR(INDEX(ПланиранеНаСъбития[],MATCH($H$12&\"|\"&ROW(A4),ПланиранеНаСъбития[УНИКАЛНА СТОЙНОСТ \n(ИЗЧИСЛЕНА)],0),3),\"\")","v":""}]
[null,"Година",null,null,{"$f":"'Времеви интервали'!E13","v":"08:30:00"},{"$f":"IFERROR(INDEX(ПланиранеНаСъбития[],MATCH(DATEVALUE(СтойностЗаДата)&ГрафикЗаДеня[[#This Row],[Час]],ТърсенеНаДатаИЧас,0),3),\"\")","v":""},null,null,{"$f":"IFERROR(INDEX(ПланиранеНаСъбития[],MATCH($H$12&\"|\"&ROW(A5),ПланиранеНаСъбития[УНИКАЛНА СТОЙНОСТ \n(ИЗЧИСЛЕНА)],0),2),\"\")","v":""},{"$f":"IFERROR(INDEX(ПланиранеНаСъбития[],MATCH($H$12&\"|\"&ROW(A5),ПланиранеНаСъбития[УНИКАЛНА СТОЙНОСТ \n(ИЗЧИСЛЕНА)],0),3),\"\")","v":""}]
[{"$nulls":4},{"$f":"'Времеви интервали'!E14","v":"08:45:00"},{"$f":"IFERROR(INDEX(ПланиранеНаСъбития[],MATCH(DATEVALUE(СтойностЗаДата)&ГрафикЗаДеня[[#This Row],[Час]],ТърсенеНаДатаИЧас,0),3),\"\")","v":""},null,null,{"$f":"IFERROR(INDEX(ПланиранеНаСъбития[],MATCH($H$12&\"|\"&ROW(A6),ПланиранеНаСъбития[УНИКАЛНА СТОЙНОСТ \n(ИЗЧИСЛЕНА)],0),2),\"\")","v":""},{"$f":"IFERROR(INDEX(ПланиранеНаСъбития[],MATCH($H$12&\"|\"&ROW(A6),ПланиранеНаСъбития[УНИКАЛНА СТОЙНОСТ \n(ИЗЧИСЛЕНА)],0),3),\"\")","v":""}]
[null,"Месец",null,null,{"$f":"'Времеви интервали'!E15","v":"09:00:00"},{"$f":"IFERROR(INDEX(ПланиранеНаСъбития[],MATCH(DATEVALUE(СтойностЗаДата)&ГрафикЗаДеня[[#This Row],[Час]],ТърсенеНаДатаИЧас,0),3),\"\")","v":""},null,{"$f":"IFERROR(TEXT(DATEVALUE(СтойностЗаДата)+3,\"dddd\"),\"\")","v":"понеделник"},{"$f":"IFERROR(INDEX(ПланиранеНаСъбития[],MATCH($H$18&\"|\"&ROW(A1),ПланиранеНаСъбития[УНИКАЛНА СТОЙНОСТ \n(ИЗЧИСЛЕНА)],0),2),\"\")","v":""},{"$f":"IFERROR(INDEX(ПланиранеНаСъбития[],MATCH($H$18&\"|\"&ROW(A1),ПланиранеНаСъбития[УНИКАЛНА СТОЙНОСТ \n(ИЗЧИСЛЕНА)],0),3),\"\")","v":""}]
[{"$nulls":4},{"$f":"'Времеви интервали'!E16","v":"09:15:00"},{"$f":"IFERROR(INDEX(ПланиранеНаСъбития[],MATCH(DATEVALUE(СтойностЗаДата)&ГрафикЗаДеня[[#This Row],[Час]],ТърсенеНаДатаИЧас,0),3),\"\")","v":""},null,{"$f":"IFERROR(TEXT(DATEVALUE(СтойностЗаДата)+3,\"d\"),\"\")","v":"9"},{"$f":"IFERROR(INDEX(ПланиранеНаСъбития[],MATCH($H$18&\"|\"&ROW(A2),ПланиранеНаСъбития[УНИКАЛНА СТОЙНОСТ \n(ИЗЧИСЛЕНА)],0),2),\"\")","v":""},{"$f":"IFERROR(INDEX(ПланиранеНаСъбития[],MATCH($H$18&\"|\"&ROW(A2),ПланиранеНаСъбития[УНИКАЛНА СТОЙНОСТ \n(ИЗЧИСЛЕНА)],0),3),\"\")","v":""}]
[null,"Ден",null,null,{"$f":"'Времеви интервали'!E17","v":"09:30:00"},{"$f":"IFERROR(INDEX(ПланиранеНаСъбития[],MATCH(DATEVALUE(СтойностЗаДата)&ГрафикЗаДеня[[#This Row],[Час]],ТърсенеНаДатаИЧас,0),3),\"\")","v":""},null,null,{"$f":"IFERROR(INDEX(ПланиранеНаСъбития[],MATCH($H$18&\"|\"&ROW(A3),ПланиранеНаСъбития[УНИКАЛНА СТОЙНОСТ \n(ИЗЧИСЛЕНА)],0),2),\"\")","v":""},{"$f":"IFERROR(INDEX(ПланиранеНаСъбития[],MATCH($H$18&\"|\"&ROW(A3),ПланиранеНаСъбития[УНИКАЛНА СТОЙНОСТ \n(ИЗЧИСЛЕНА)],0),3),\"\")","v":""}]
[{"$nulls":4},{"$f":"'Времеви интервали'!E18","v":"09:45:00"},{"$f":"IFERROR(INDEX(ПланиранеНаСъбития[],MATCH(DATEVALUE(СтойностЗаДата)&ГрафикЗаДеня[[#This Row],[Час]],ТърсенеНаДатаИЧас,0),3),\"\")","v":""},null,{"$f":"IFERROR(СтойностЗаДата+3,\"\")","v":"2019-09-09"},{"$f":"IFERROR(INDEX(ПланиранеНаСъбития[],MATCH($H$18&\"|\"&ROW(A4),ПланиранеНаСъбития[УНИКАЛНА СТОЙНОСТ \n(ИЗЧИСЛЕНА)],0),2),\"\")","v":""},{"$f":"IFERROR(INDEX(ПланиранеНаСъбития[],MATCH($H$18&\"|\"&ROW(A4),ПланиранеНаСъбития[УНИКАЛНА СТОЙНОСТ \n(ИЗЧИСЛЕНА)],0),3),\"\")","v":""}]
[null,"РЕДАКТИРАНЕ НА ГРАФИКА",null,null,{"$f":"'Времеви интервали'!E19","v":"10:00:00"},{"$f":"IFERROR(INDEX(ПланиранеНаСъбития[],MATCH(DATEVALUE(СтойностЗаДата)&ГрафикЗаДеня[[#This Row],[Час]],ТърсенеНаДатаИЧас,0),3),\"\")","v":"Почивка"},null,null,{"$f":"IFERROR(INDEX(ПланиранеНаСъбития[],MATCH($H$18&\"|\"&ROW(A5),ПланиранеНаСъбития[УНИКАЛНА СТОЙНОСТ \n(ИЗЧИСЛЕНА)],0),2),\"\")","v":""},{"$f":"IFERROR(INDEX(ПланиранеНаСъбития[],MATCH($H$18&\"|\"&ROW(A5),ПланиранеНаСъбития[УНИКАЛНА СТОЙНОСТ \n(ИЗЧИСЛЕНА)],0),3),\"\")","v":""}]
[{"$nulls":4},{"$f":"'Времеви интервали'!E20","v":"10:15:00"},{"$f":"IFERROR(INDEX(ПланиранеНаСъбития[],MATCH(DATEVALUE(СтойностЗаДата)&ГрафикЗаДеня[[#This Row],[Час]],ТърсенеНаДатаИЧас,0),3),\"\")","v":""},null,null,{"$f":"IFERROR(INDEX(ПланиранеНаСъбития[],MATCH($H$18&\"|\"&ROW(A6),ПланиранеНаСъбития[УНИКАЛНА СТОЙНОСТ \n(ИЗЧИСЛЕНА)],0),2),\"\")","v":""},{"$f":"IFERROR(INDEX(ПланиранеНаСъбития[],MATCH($H$18&\"|\"&ROW(A6),ПланиранеНаСъбития[УНИКАЛНА СТОЙНОСТ \n(ИЗЧИСЛЕНА)],0),3),\"\")","v":""}]
[null,"Изберете, за да редактирате времевите интервали",null,null,{"$f":"'Времеви интервали'!E21","v":"10:30:00"},{"$f":"IFERROR(INDEX(ПланиранеНаСъбития[],MATCH(DATEVALUE(СтойностЗаДата)&ГрафикЗаДеня[[#This Row],[Час]],ТърсенеНаДатаИЧас,0),3),\"\")","v":""},null,{"$f":"IFERROR(TEXT(DATEVALUE(СтойностЗаДата)+4,\"dddd\"),\"\")","v":"вторник"},{"$f":"IFERROR(INDEX(ПланиранеНаСъбития[],MATCH($H$24&\"|\"&ROW(A1),ПланиранеНаСъбития[УНИКАЛНА СТОЙНОСТ \n(ИЗЧИСЛЕНА)],0),2),\"\")","v":""},{"$f":"IFERROR(INDEX(ПланиранеНаСъбития[],MATCH($H$24&\"|\"&ROW(A1),ПланиранеНаСъбития[УНИКАЛНА СТОЙНОСТ \n(ИЗЧИСЛЕНА)],0),3),\"\")","v":""}]
[{"$nulls":4},{"$f":"'Времеви интервали'!E22","v":"10:45:00"},{"$f":"IFERROR(INDEX(ПланиранеНаСъбития[],MATCH(DATEVALUE(СтойностЗаДата)&ГрафикЗаДеня[[#This Row],[Час]],ТърсенеНаДатаИЧас,0),3),\"\")","v":""},null,{"$f":"IFERROR(TEXT(DATEVALUE(СтойностЗаДата)+4,\"d\"),\"\")","v":"10"},{"$f":"IFERROR(INDEX(ПланиранеНаСъбития[],MATCH($H$24&\"|\"&ROW(A2),ПланиранеНаСъбития[УНИКАЛНА СТОЙНОСТ \n(ИЗЧИСЛЕНА)],0),2),\"\")","v":""},{"$f":"IFERROR(INDEX(ПланиранеНаСъбития[],MATCH($H$24&\"|\"&ROW(A2),ПланиранеНаСъбития[УНИКАЛНА СТОЙНОСТ \n(ИЗЧИСЛЕНА)],0),3),\"\")","v":""}]
[null,"Изберете, за да добавите ново събитие",null,null,{"$f":"'Времеви интервали'!E23","v":"11:00:00"},{"$f":"IFERROR(INDEX(ПланиранеНаСъбития[],MATCH(DATEVALUE(СтойностЗаДата)&ГрафикЗаДеня[[#This Row],[Час]],ТърсенеНаДатаИЧас,0),3),\"\")","v":""},null,null,{"$f":"IFERROR(INDEX(ПланиранеНаСъбития[],MATCH($H$24&\"|\"&ROW(A3),ПланиранеНаСъбития[УНИКАЛНА СТОЙНОСТ \n(ИЗЧИСЛЕНА)],0),2),\"\")","v":""},{"$f":"IFERROR(INDEX(ПланиранеНаСъбития[],MATCH($H$24&\"|\"&ROW(A3),ПланиранеНаСъбития[УНИКАЛНА СТОЙНОСТ \n(ИЗЧИСЛЕНА)],0),3),\"\")","v":""}]
[{"$nulls":4},{"$f":"'Времеви интервали'!E24","v":"11:15:00"},{"$f":"IFERROR(INDEX(ПланиранеНаСъбития[],MATCH(DATEVALUE(СтойностЗаДата)&ГрафикЗаДеня[[#This Row],[Час]],ТърсенеНаДатаИЧас,0),3),\"\")","v":""},null,{"$f":"IFERROR(СтойностЗаДата+4,\"\")","v":"2019-09-10"},{"$f":"IFERROR(INDEX(ПланиранеНаСъбития[],MATCH($H$24&\"|\"&ROW(A4),ПланиранеНаСъбития[УНИКАЛНА СТОЙНОСТ \n(ИЗЧИСЛЕНА)],0),2),\"\")","v":""},{"$f":"IFERROR(INDEX(ПланиранеНаСъбития[],MATCH($H$24&\"|\"&ROW(A4),ПланиранеНаСъбития[УНИКАЛНА СТОЙНОСТ \n(ИЗЧИСЛЕНА)],0),3),\"\")","v":""}]
[null,"МАРКИРАНЕ В ГРАФИКА:",null,null,{"$f":"'Времеви интервали'!E25","v":"11:30:00"},{"$f":"IFERROR(INDEX(ПланиранеНаСъбития[],MATCH(DATEVALUE(СтойностЗаДата)&ГрафикЗаДеня[[#This Row],[Час]],ТърсенеНаДатаИЧас,0),3),\"\")","v":""},null,null,{"$f":"IFERROR(INDEX(ПланиранеНаСъбития[],MATCH($H$24&\"|\"&ROW(A5),ПланиранеНаСъбития[УНИКАЛНА СТОЙНОСТ \n(ИЗЧИСЛЕНА)],0),2),\"\")","v":""},{"$f":"IFERROR(INDEX(ПланиранеНаСъбития[],MATCH($H$24&\"|\"&ROW(A5),ПланиранеНаСъбития[УНИКАЛНА СТОЙНОСТ \n(ИЗЧИСЛЕНА)],0),3),\"\")","v":""}]
[null,"Почивка",null,null,{"$f":"'Времеви интервали'!E26","v":"11:45:00"},{"$f":"IFERROR(INDEX(ПланиранеНаСъбития[],MATCH(DATEVALUE(СтойностЗаДата)&ГрафикЗаДеня[[#This Row],[Час]],ТърсенеНаДатаИЧас,0),3),\"\")","v":""},null,{"$f":"IFERROR(TEXT(DATEVALUE(СтойностЗаДата)+5,\"dddd\"),\"\")","v":"сряда"},{"$f":"IFERROR(INDEX(ПланиранеНаСъбития[],MATCH($H$29&\"|\"&ROW(A1),ПланиранеНаСъбития[УНИКАЛНА СТОЙНОСТ \n(ИЗЧИСЛЕНА)],0),2),\"\")","v":""},{"$f":"IFERROR(INDEX(ПланиранеНаСъбития[],MATCH($H$29&\"|\"&ROW(A1),ПланиранеНаСъбития[УНИКАЛНА СТОЙНОСТ \n(ИЗЧИСЛЕНА)],0),3),\"\")","v":""}]
[{"$nulls":4},{"$f":"'Времеви интервали'!E27","v":"12:00:00"},{"$f":"IFERROR(INDEX(ПланиранеНаСъбития[],MATCH(DATEVALUE(СтойностЗаДата)&ГрафикЗаДеня[[#This Row],[Час]],ТърсенеНаДатаИЧас,0),3),\"\")","v":"Обяд"},null,{"$f":"IFERROR(TEXT(DATEVALUE(СтойностЗаДата)+5,\"d\"),\"\")","v":"11"},{"$f":"IFERROR(INDEX(ПланиранеНаСъбития[],MATCH($H$29&\"|\"&ROW(A2),ПланиранеНаСъбития[УНИКАЛНА СТОЙНОСТ \n(ИЗЧИСЛЕНА)],0),2),\"\")","v":""},{"$f":"IFERROR(INDEX(ПланиранеНаСъбития[],MATCH($H$29&\"|\"&ROW(A2),ПланиранеНаСъбития[УНИКАЛНА СТОЙНОСТ \n(ИЗЧИСЛЕНА)],0),3),\"\")","v":""}]
[{"$nulls":4},{"$f":"'Времеви интервали'!E28","v":"12:15:00"},{"$f":"IFERROR(INDEX(ПланиранеНаСъбития[],MATCH(DATEVALUE(СтойностЗаДата)&ГрафикЗаДеня[[#This Row],[Час]],ТърсенеНаДатаИЧас,0),3),\"\")","v":""},null,null,{"$f":"IFERROR(INDEX(ПланиранеНаСъбития[],MATCH($H$29&\"|\"&ROW(A3),ПланиранеНаСъбития[УНИКАЛНА СТОЙНОСТ \n(ИЗЧИСЛЕНА)],0),2),\"\")","v":""},{"$f":"IFERROR(INDEX(ПланиранеНаСъбития[],MATCH($H$29&\"|\"&ROW(A3),ПланиранеНаСъбития[УНИКАЛНА СТОЙНОСТ \n(ИЗЧИСЛЕНА)],0),3),\"\")","v":""}]
[{"$nulls":4},{"$f":"'Времеви интервали'!E29","v":"12:30:00"},{"$f":"IFERROR(INDEX(ПланиранеНаСъбития[],MATCH(DATEVALUE(СтойностЗаДата)&ГрафикЗаДеня[[#This Row],[Час]],ТърсенеНаДатаИЧас,0),3),\"\")","v":""},null,{"$f":"IFERROR(СтойностЗаДата+5,\"\")","v":"2019-09-11"},{"$f":"IFERROR(INDEX(ПланиранеНаСъбития[],MATCH($H$29&\"|\"&ROW(A4),ПланиранеНаСъбития[УНИКАЛНА СТОЙНОСТ \n(ИЗЧИСЛЕНА)],0),2),\"\")","v":""},{"$f":"IFERROR(INDEX(ПланиранеНаСъбития[],MATCH($H$29&\"|\"&ROW(A4),ПланиранеНаСъбития[УНИКАЛНА СТОЙНОСТ \n(ИЗЧИСЛЕНА)],0),3),\"\")","v":""}]
[{"$nulls":4},{"$f":"'Времеви интервали'!E30","v":"12:45:00"},{"$f":"IFERROR(INDEX(ПланиранеНаСъбития[],MATCH(DATEVALUE(СтойностЗаДата)&ГрафикЗаДеня[[#This Row],[Час]],ТърсенеНаДатаИЧас,0),3),\"\")","v":""},null,null,{"$f":"IFERROR(INDEX(ПланиранеНаСъбития[],MATCH($H$29&\"|\"&ROW(A5),ПланиранеНаСъбития[УНИКАЛНА СТОЙНОСТ \n(ИЗЧИСЛЕНА)],0),2),\"\")","v":""},{"$f":"IFERROR(INDEX(ПланиранеНаСъбития[],MATCH($H$29&\"|\"&ROW(A5),ПланиранеНаСъбития[УНИКАЛНА СТОЙНОСТ \n(ИЗЧИСЛЕНА)],0),3),\"\")","v":""}]
[{"$nulls":4},{"$f":"'Времеви интервали'!E31","v":"13:00:00"},{"$f":"IFERROR(INDEX(ПланиранеНаСъбития[],MATCH(DATEVALUE(СтойностЗаДата)&ГрафикЗаДеня[[#This Row],[Час]],ТърсенеНаДатаИЧас,0),3),\"\")","v":""},null,{"$f":"IFERROR(TEXT(DATEVALUE(СтойностЗаДата)+6,\"dddd\"),\"\")","v":"четвъртък"},{"$f":"IFERROR(INDEX(ПланиранеНаСъбития[],MATCH($H$34&\"|\"&ROW(A1),ПланиранеНаСъбития[УНИКАЛНА СТОЙНОСТ \n(ИЗЧИСЛЕНА)],0),2),\"\")","v":""},{"$f":"IFERROR(INDEX(ПланиранеНаСъбития[],MATCH($H$34&\"|\"&ROW(A1),ПланиранеНаСъбития[УНИКАЛНА СТОЙНОСТ \n(ИЗЧИСЛЕНА)],0),3),\"\")","v":""}]
[{"$nulls":4},{"$f":"'Времеви интервали'!E32","v":"13:15:00"},{"$f":"IFERROR(INDEX(ПланиранеНаСъбития[],MATCH(DATEVALUE(СтойностЗаДата)&ГрафикЗаДеня[[#This Row],[Час]],ТърсенеНаДатаИЧас,0),3),\"\")","v":""},null,{"$f":"IFERROR(TEXT(DATEVALUE(СтойностЗаДата)+6,\"d\"),\"\")","v":"12"},{"$f":"IFERROR(INDEX(ПланиранеНаСъбития[],MATCH($H$34&\"|\"&ROW(A2),ПланиранеНаСъбития[УНИКАЛНА СТОЙНОСТ \n(ИЗЧИСЛЕНА)],0),2),\"\")","v":""},{"$f":"IFERROR(INDEX(ПланиранеНаСъбития[],MATCH($H$34&\"|\"&ROW(A2),ПланиранеНаСъбития[УНИКАЛНА СТОЙНОСТ \n(ИЗЧИСЛЕНА)],0),3),\"\")","v":""}]
[{"$nulls":4},{"$f":"'Времеви интервали'!E33","v":"13:30:00"},{"$f":"IFERROR(INDEX(ПланиранеНаСъбития[],MATCH(DATEVALUE(СтойностЗаДата)&ГрафикЗаДеня[[#This Row],[Час]],ТърсенеНаДатаИЧас,0),3),\"\")","v":"Корпоративни повикване"},null,null,{"$f":"IFERROR(INDEX(ПланиранеНаСъбития[],MATCH($H$34&\"|\"&ROW(A3),ПланиранеНаСъбития[УНИКАЛНА СТОЙНОСТ \n(ИЗЧИСЛЕНА)],0),2),\"\")","v":""},{"$f":"IFERROR(INDEX(ПланиранеНаСъбития[],MATCH($H$34&\"|\"&ROW(A3),ПланиранеНаСъбития[УНИКАЛНА СТОЙНОСТ \n(ИЗЧИСЛЕНА)],0),3),\"\")","v":""}]
[{"$nulls":4},{"$f":"'Времеви интервали'!E34","v":"13:45:00"},{"$f":"IFERROR(INDEX(ПланиранеНаСъбития[],MATCH(DATEVALUE(СтойностЗаДата)&ГрафикЗаДеня[[#This Row],[Час]],ТърсенеНаДатаИЧас,0),3),\"\")","v":""},null,{"$f":"IFERROR(СтойностЗаДата+6,\"\")","v":"2019-09-12"},{"$f":"IFERROR(INDEX(ПланиранеНаСъбития[],MATCH($H$34&\"|\"&ROW(A4),ПланиранеНаСъбития[УНИКАЛНА СТОЙНОСТ \n(ИЗЧИСЛЕНА)],0),2),\"\")","v":""},{"$f":"IFERROR(INDEX(ПланиранеНаСъбития[],MATCH($H$34&\"|\"&ROW(A4),ПланиранеНаСъбития[УНИКАЛНА СТОЙНОСТ \n(ИЗЧИСЛЕНА)],0),3),\"\")","v":""}]
[{"$nulls":4},{"$f":"'Времеви интервали'!E35","v":"14:00:00"},{"$f":"IFERROR(INDEX(ПланиранеНаСъбития[],MATCH(DATEVALUE(СтойностЗаДата)&ГрафикЗаДеня[[#This Row],[Час]],ТърсенеНаДатаИЧас,0),3),\"\")","v":""},null,null,{"$f":"IFERROR(INDEX(ПланиранеНаСъбития[],MATCH($H$34&\"|\"&ROW(A5),ПланиранеНаСъбития[УНИКАЛНА СТОЙНОСТ \n(ИЗЧИСЛЕНА)],0),2),\"\")","v":""},{"$f":"IFERROR(INDEX(ПланиранеНаСъбития[],MATCH($H$34&\"|\"&ROW(A5),ПланиранеНаСъбития[УНИКАЛНА СТОЙНОСТ \n(ИЗЧИСЛЕНА)],0),3),\"\")","v":""}]
[{"$nulls":4},{"$f":"'Времеви интервали'!E36","v":"14:15:00"},{"$f":"IFERROR(INDEX(ПланиранеНаСъбития[],MATCH(DATEVALUE(СтойностЗаДата)&ГрафикЗаДеня[[#This Row],[Час]],ТърсенеНаДатаИЧас,0),3),\"\")","v":""}]
[{"$nulls":4},{"$f":"'Времеви интервали'!E37","v":"14:30:00"},{"$f":"IFERROR(INDEX(ПланиранеНаСъбития[],MATCH(DATEVALUE(СтойностЗаДата)&ГрафикЗаДеня[[#This Row],[Час]],ТърсенеНаДатаИЧас,0),3),\"\")","v":""}]
[{"$nulls":4},{"$f":"'Времеви интервали'!E38","v":"14:45:00"},{"$f":"IFERROR(INDEX(ПланиранеНаСъбития[],MATCH(DATEVALUE(СтойностЗаДата)&ГрафикЗаДеня[[#This Row],[Час]],ТърсенеНаДатаИЧас,0),3),\"\")","v":""}]
[{"$nulls":4},{"$f":"'Времеви интервали'!E39","v":"15:00:00"},{"$f":"IFERROR(INDEX(ПланиранеНаСъбития[],MATCH(DATEVALUE(СтойностЗаДата)&ГрафикЗаДеня[[#This Row],[Час]],ТърсенеНаДатаИЧас,0),3),\"\")","v":"Почивка"}]
[{"$nulls":4},{"$f":"'Времеви интервали'!E40","v":"15:15:00"},{"$f":"IFERROR(INDEX(ПланиранеНаСъбития[],MATCH(DATEVALUE(СтойностЗаДата)&ГрафикЗаДеня[[#This Row],[Час]],ТърсенеНаДатаИЧас,0),3),\"\")","v":""}]
[{"$nulls":4},{"$f":"'Времеви интервали'!E41","v":"15:30:00"},{"$f":"IFERROR(INDEX(ПланиранеНаСъбития[],MATCH(DATEVALUE(СтойностЗаДата)&ГрафикЗаДеня[[#This Row],[Час]],ТърсенеНаДатаИЧас,0),3),\"\")","v":""}]
[{"$nulls":4},{"$f":"'Времеви интервали'!E42","v":"15:45:00"},{"$f":"IFERROR(INDEX(ПланиранеНаСъбития[],MATCH(DATEVALUE(СтойностЗаДата)&ГрафикЗаДеня[[#This Row],[Час]],ТърсенеНаДатаИЧас,0),3),\"\")","v":""}]
[{"$nulls":4},{"$f":"'Времеви интервали'!E43","v":"16:00:00"},{"$f":"IFERROR(INDEX(ПланиранеНаСъбития[],MATCH(DATEVALUE(СтойностЗаДата)&ГрафикЗаДеня[[#This Row],[Час]],ТърсенеНаДатаИЧас,0),3),\"\")","v":""}]
[{"$nulls":4},{"$f":"'Времеви интервали'!E44","v":"16:15:00"},{"$f":"IFERROR(INDEX(ПланиранеНаСъбития[],MATCH(DATEVALUE(СтойностЗаДата)&ГрафикЗаДеня[[#This Row],[Час]],ТърсенеНаДатаИЧас,0),3),\"\")","v":""}]
[{"$nulls":4},{"$f":"'Времеви интервали'!E45","v":"16:30:00"},{"$f":"IFERROR(INDEX(ПланиранеНаСъбития[],MATCH(DATEVALUE(СтойностЗаДата)&ГрафикЗаДеня[[#This Row],[Час]],ТърсенеНаДатаИЧас,0),3),\"\")","v":""}]
[{"$nulls":4},{"$f":"'Времеви интервали'!E46","v":"16:45:00"},{"$f":"IFERROR(INDEX(ПланиранеНаСъбития[],MATCH(DATEVALUE(СтойностЗаДата)&ГрафикЗаДеня[[#This Row],[Час]],ТърсенеНаДатаИЧас,0),3),\"\")","v":""}]
[{"$nulls":4},{"$f":"'Времеви интервали'!E47","v":"17:00:00"},{"$f":"IFERROR(INDEX(ПланиранеНаСъбития[],MATCH(DATEVALUE(СтойностЗаДата)&ГрафикЗаДеня[[#This Row],[Час]],ТърсенеНаДатаИЧас,0),3),\"\")","v":"У дома"}]
[{"$nulls":4},{"$f":"'Времеви интервали'!E48","v":"17:15:00"},{"$f":"IFERROR(INDEX(ПланиранеНаСъбития[],MATCH(DATEVALUE(СтойностЗаДата)&ГрафикЗаДеня[[#This Row],[Час]],ТърсенеНаДатаИЧас,0),3),\"\")","v":""}]
[{"$nulls":4},{"$f":"'Времеви интервали'!E49","v":"17:30:00"},{"$f":"IFERROR(INDEX(ПланиранеНаСъбития[],MATCH(DATEVALUE(СтойностЗаДата)&ГрафикЗаДеня[[#This Row],[Час]],ТърсенеНаДатаИЧас,0),3),\"\")","v":""}]
[{"$nulls":4},{"$f":"'Времеви интервали'!E50","v":"17:45:00"},{"$f":"IFERROR(INDEX(ПланиранеНаСъбития[],MATCH(DATEVALUE(СтойностЗаДата)&ГрафикЗаДеня[[#This Row],[Час]],ТърсенеНаДатаИЧас,0),3),\"\")","v":""}]
[{"$nulls":4},{"$f":"'Времеви интервали'!E51","v":"18:00:00"},{"$f":"IFERROR(INDEX(ПланиранеНаСъбития[],MATCH(DATEVALUE(СтойностЗаДата)&ГрафикЗаДеня[[#This Row],[Час]],ТърсенеНаДатаИЧас,0),3),\"\")","v":"Тренировка по футбол"}]
[{"$nulls":4},{"$f":"'Времеви интервали'!E52","v":"18:15:00"},{"$f":"IFERROR(INDEX(ПланиранеНаСъбития[],MATCH(DATEVALUE(СтойностЗаДата)&ГрафикЗаДеня[[#This Row],[Час]],ТърсенеНаДатаИЧас,0),3),\"\")","v":""}]
[{"$nulls":4},{"$f":"'Времеви интервали'!E53","v":"18:30:00"},{"$f":"IFERROR(INDEX(ПланиранеНаСъбития[],MATCH(DATEVALUE(СтойностЗаДата)&ГрафикЗаДеня[[#This Row],[Час]],ТърсенеНаДатаИЧас,0),3),\"\")","v":""}]
[{"$nulls":4},{"$f":"'Времеви интервали'!E54","v":"18:45:00"},{"$f":"IFERROR(INDEX(ПланиранеНаСъбития[],MATCH(DATEVALUE(СтойностЗаДата)&ГрафикЗаДеня[[#This Row],[Час]],ТърсенеНаДатаИЧас,0),3),\"\")","v":""}]
[{"$nulls":4},{"$f":"'Времеви интервали'!E55","v":"19:00:00"},{"$f":"IFERROR(INDEX(ПланиранеНаСъбития[],MATCH(DATEVALUE(СтойностЗаДата)&ГрафикЗаДеня[[#This Row],[Час]],ТърсенеНаДатаИЧас,0),3),\"\")","v":""}]
[{"$nulls":4},{"$f":"'Времеви интервали'!E56","v":"19:15:00"},{"$f":"IFERROR(INDEX(ПланиранеНаСъбития[],MATCH(DATEVALUE(СтойностЗаДата)&ГрафикЗаДеня[[#This Row],[Час]],ТърсенеНаДатаИЧас,0),3),\"\")","v":""}]
[{"$nulls":4},{"$f":"'Времеви интервали'!E57","v":"19:30:00"},{"$f":"IFERROR(INDEX(ПланиранеНаСъбития[],MATCH(DATEVALUE(СтойностЗаДата)&ГрафикЗаДеня[[#This Row],[Час]],ТърсенеНаДатаИЧас,0),3),\"\")","v":""}]
[{"$nulls":4},{"$f":"'Времеви интервали'!E58","v":"19:45:00"},{"$f":"IFERROR(INDEX(ПланиранеНаСъбития[],MATCH(DATEVALUE(СтойностЗаДата)&ГрафикЗаДеня[[#This Row],[Час]],ТърсенеНаДатаИЧас,0),3),\"\")","v":""}]
[{"$nulls":4},{"$f":"'Времеви интервали'!E59","v":"20:00:00"},{"$f":"IFERROR(INDEX(ПланиранеНаСъбития[],MATCH(DATEVALUE(СтойностЗаДата)&ГрафикЗаДеня[[#This Row],[Час]],ТърсенеНаДатаИЧас,0),3),\"\")","v":""}]
[{"$nulls":4},{"$f":"'Времеви интервали'!E60","v":"20:15:00"},{"$f":"IFERROR(INDEX(ПланиранеНаСъбития[],MATCH(DATEVALUE(СтойностЗаДата)&ГрафикЗаДеня[[#This Row],[Час]],ТърсенеНаДатаИЧас,0),3),\"\")","v":""}]
[{"$nulls":4},{"$f":"'Времеви интервали'!E61","v":"20:30:00"},{"$f":"IFERROR(INDEX(ПланиранеНаСъбития[],MATCH(DATEVALUE(СтойностЗаДата)&ГрафикЗаДеня[[#This Row],[Час]],ТърсенеНаДатаИЧас,0),3),\"\")","v":""}]
[{"$nulls":4},{"$f":"'Времеви интервали'!E62","v":"20:45:00"},{"$f":"IFERROR(INDEX(ПланиранеНаСъбития[],MATCH(DATEVALUE(СтойностЗаДата)&ГрафикЗаДеня[[#This Row],[Час]],ТърсенеНаДатаИЧас,0),3),\"\")","v":""}]
[{"$nulls":4},{"$f":"'Времеви интервали'!E63","v":"21:00:00"},{"$f":"IFERROR(INDEX(ПланиранеНаСъбития[],MATCH(DATEVALUE(СтойностЗаДата)&ГрафикЗаДеня[[#This Row],[Час]],ТърсенеНаДатаИЧас,0),3),\"\")","v":""}]
[{"$nulls":4},{"$f":"'Времеви интервали'!E64","v":""},{"$f":"IFERROR(INDEX(ПланиранеНаСъбития[],MATCH(DATEVALUE(СтойностЗаДата)&ГрафикЗаДеня[[#This Row],[Час]],ТърсенеНаДатаИЧас,0),3),\"\")","v":""}]
[{"$nulls":4},{"$f":"'Времеви интервали'!E65","v":""},{"$f":"IFERROR(INDEX(ПланиранеНаСъбития[],MATCH(DATEVALUE(СтойностЗаДата)&ГрафикЗаДеня[[#This Row],[Час]],ТърсенеНаДатаИЧас,0),3),\"\")","v":""}]
[{"$nulls":4},{"$f":"'Времеви интервали'!E66","v":""},{"$f":"IFERROR(INDEX(ПланиранеНаСъбития[],MATCH(DATEVALUE(СтойностЗаДата)&ГрафикЗаДеня[[#This Row],[Час]],ТърсенеНаДатаИЧас,0),3),\"\")","v":""}]
[{"$nulls":4},{"$f":"'Времеви интервали'!E67","v":""},{"$f":"IFERROR(INDEX(ПланиранеНаСъбития[],MATCH(DATEVALUE(СтойностЗаДата)&ГрафикЗаДеня[[#This Row],[Час]],ТърсенеНаДатаИЧас,0),3),\"\")","v":""}]
[{"$nulls":4},{"$f":"'Времеви интервали'!E68","v":""},{"$f":"IFERROR(INDEX(ПланиранеНаСъбития[],MATCH(DATEVALUE(СтойностЗаДата)&ГрафикЗаДеня[[#This Row],[Час]],ТърсенеНаДатаИЧас,0),3),\"\")","v":""}]
[{"$nulls":4},{"$f":"'Времеви интервали'!E69","v":""},{"$f":"IFERROR(INDEX(ПланиранеНаСъбития[],MATCH(DATEVALUE(СтойностЗаДата)&ГрафикЗаДеня[[#This Row],[Час]],ТърсенеНаДатаИЧас,0),3),\"\")","v":""}]
[{"$nulls":4},{"$f":"'Времеви интервали'!E70","v":""},{"$f":"IFERROR(INDEX(ПланиранеНаСъбития[],MATCH(DATEVALUE(СтойностЗаДата)&ГрафикЗаДеня[[#This Row],[Час]],ТърсенеНаДатаИЧас,0),3),\"\")","v":""}]
[{"$nulls":4},{"$f":"'Времеви интервали'!E71","v":""},{"$f":"IFERROR(INDEX(ПланиранеНаСъбития[],MATCH(DATEVALUE(СтойностЗаДата)&ГрафикЗаДеня[[#This Row],[Час]],ТърсенеНаДатаИЧас,0),3),\"\")","v":""}]
[{"$nulls":4},{"$f":"'Времеви интервали'!E72","v":""},{"$f":"IFERROR(INDEX(ПланиранеНаСъбития[],MATCH(DATEVALUE(СтойностЗаДата)&ГрафикЗаДеня[[#This Row],[Час]],ТърсенеНаДатаИЧас,0),3),\"\")","v":""}]
[{"$nulls":4},{"$f":"'Времеви интервали'!E73","v":""},{"$f":"IFERROR(INDEX(ПланиранеНаСъбития[],MATCH(DATEVALUE(СтойностЗаДата)&ГрафикЗаДеня[[#This Row],[Час]],ТърсенеНаДатаИЧас,0),3),\"\")","v":""}]
[{"$nulls":4},{"$f":"'Времеви интервали'!E74","v":""},{"$f":"IFERROR(INDEX(ПланиранеНаСъбития[],MATCH(DATEVALUE(СтойностЗаДата)&ГрафикЗаДеня[[#This Row],[Час]],ТърсенеНаДатаИЧас,0),3),\"\")","v":""}]
[{"$nulls":4},{"$f":"'Времеви интервали'!E75","v":""},{"$f":"IFERROR(INDEX(ПланиранеНаСъбития[],MATCH(DATEVALUE(СтойностЗаДата)&ГрафикЗаДеня[[#This Row],[Час]],ТърсенеНаДатаИЧас,0),3),\"\")","v":""}]

{"sheet":"Планиране на събития","index":1,"n_rows":15,"n_cols":8,"rows_kept":15,"merged":[[1,1,4,2],[5,1,6,2],[7,1,7,2]]}
[null,"Планиране на събития"]
[null,{"$f":"DAY(СтойностЗаДата)","v":6},null,null,"ДАТА","ЧАС","ОПИСАНИЕ","УНИКАЛНА СТОЙНОСТ \n(ИЗЧИСЛЕНА)"]
[{"$nulls":4},{"$f":"TODAY()","v":"2019-09-06"},"06:00:00","Събуждане",{"$f":"ПланиранеНаСъбития[[#This Row],[ДАТА]]&\"|\"&COUNTIF($E$3:E3,E3)","v":"43714|1"}]
[{"$nulls":4},{"$f":"TODAY()","v":"2019-09-06"},"06:30:00","Душ",{"$f":"ПланиранеНаСъбития[[#This Row],[ДАТА]]&\"|\"&COUNTIF($E$3:E4,E4)","v":"43714|2"}]
[{"$nulls":4},"2019-09-06","07:30:00","Излизане за работа",{"$f":"ПланиранеНаСъбития[[#This Row],[ДАТА]]&\"|\"&COUNTIF($E$3:E5,E5)","v":"43714|3"}]
[null,{"$f":"TEXT(СтойностЗаДата,\"dddd\")","v":"петък"},null,null,"2019-09-06","08:00:00","Начало на смяната",{"$f":"ПланиранеНаСъбития[[#This Row],[ДАТА]]&\"|\"&COUNTIF($E$3:E6,E6)","v":"43714|4"}]
[{"$nulls":4},"2019-09-06","10:00:00","Почивка",{"$f":"ПланиранеНаСъбития[[#This Row],[ДАТА]]&\"|\"&COUNTIF($E$3:E7,E7)","v":"43714|5"}]
[null,{"$f":"СтойностЗаДата","v":"06 СЕПТЕМВРИ 2019"},null,null,"2019-09-06","12:00:00","Обяд",{"$f":"ПланиранеНаСъбития[[#This Row],[ДАТА]]&\"|\"&COUNTIF($E$3:E8,E8)","v":"43714|6"}]
[{"$nulls":4},"2019-09-06","13:00:00","Връщане на работа",{"$f":"ПланиранеНаСъбития[[#This Row],[ДАТА]]&\"|\"&COUNTIF($E$3:E9,E9)","v":"43714|7"}]
[null,"Изберете, за да редактирате времевите интервали",null,null,"2019-09-06","13:30:00","Корпоративни повикване",{"$f":"ПланиранеНаСъбития[[#This Row],[ДАТА]]&\"|\"&COUNTIF($E$3:E10,E10)","v":"43714|8"}]
[{"$nulls":4},"2019-09-06","15:00:00","Почивка",{"$f":"ПланиранеНаСъбития[[#This Row],[ДАТА]]&\"|\"&COUNTIF($E$3:E11,E11)","v":"43714|9"}]
[null,"Изберете, за да видите \"График за деня\"",null,null,"2019-09-06","17:00:00","У дома",{"$f":"ПланиранеНаСъбития[[#This Row],[ДАТА]]&\"|\"&COUNTIF($E$3:E12,E12)","v":"43714|10"}]
[{"$nulls":4},"2019-09-06","18:00:00","Тренировка по футбол",{"$f":"ПланиранеНаСъбития[[#This Row],[ДАТА]]&\"|\"&COUNTIF($E$3:E13,E13)","v":"43714|11"}]
[{"$nulls":4},{"$f":"TODAY()+1","v":"2019-09-07"},"06:30:00","Закуска",{"$f":"ПланиранеНаСъбития[[#This Row],[ДАТА]]&\"|\"&COUNTIF($E$3:E14,E14)","v":"43715|1"}]
[{"$nulls":4},{"$f":"TODAY()+1","v":"2019-09-07"},"07:30:00","Излизане за работа",{"$f":"ПланиранеНаСъбития[[#This Row],[ДАТА]]&\"|\"&COUNTIF($E$3:E15,E15)","v":"43715|2"}]

{"sheet":"Времеви интервали","index":2,"n_rows":75,"n_cols":5,"rows_kept":75,"merged":[[1,1,1,2],[9,1,9,2]]}
[null,"Времеви интервали"]
[null,"РЕДАКТИРАНЕ НА ТАБЛИЦАТА С ЧАСОВЕ",null,null,"Час"]
[{"$nulls":4},{"$f":"Начален_час","v":"06:00:00"}]
[null,"Начален час","06:00:00",null,{"$f":"IFERROR(IF($E3+Стъпка>КраенЧас,\"\",$E3+Стъпка),\"\")","v":"06:15:00"}]
[{"$nulls":4},{"$f":"IFERROR(IF($E4+Стъпка>КраенЧас,\"\",$E4+Стъпка),\"\")","v":"06:30:00"}]
[null,"Интервал","15 МИН",null,{"$f":"IFERROR(IF($E5+Стъпка>КраенЧас,\"\",$E5+Стъпка),\"\")","v":"06:45:00"}]
[{"$nulls":4},{"$f":"IFERROR(IF($E6+Стъпка>КраенЧас,\"\",$E6+Стъпка),\"\")","v":"07:00:00"}]
[null,"Краен час","21:00:00",null,{"$f":"IFERROR(IF($E7+Стъпка>КраенЧас,\"\",$E7+Стъпка),\"\")","v":"07:15:00"}]
[{"$nulls":4},{"$f":"IFERROR(IF($E8+Стъпка>КраенЧас,\"\",$E8+Стъпка),\"\")","v":"07:30:00"}]
[null,"ПОКАЗВАНЕ НА ГРАФИКА",null,null,{"$f":"IFERROR(IF($E9+Стъпка>КраенЧас,\"\",$E9+Стъпка),\"\")","v":"07:45:00"}]
[{"$nulls":4},{"$f":"IFERROR(IF($E10+Стъпка>КраенЧас,\"\",$E10+Стъпка),\"\")","v":"08:00:00"}]
[null,"Изберете, за да видите \"График за деня\"",null,null,{"$f":"IFERROR(IF($E11+Стъпка>КраенЧас,\"\",$E11+Стъпка),\"\")","v":"08:15:00"}]
[{"$nulls":4},{"$f":"IFERROR(IF($E12+Стъпка>КраенЧас,\"\",$E12+Стъпка),\"\")","v":"08:30:00"}]
[null,"Изберете, за да добавите ново събитие",null,null,{"$f":"IFERROR(IF($E13+Стъпка>КраенЧас,\"\",$E13+Стъпка),\"\")","v":"08:45:00"}]
[{"$nulls":4},{"$f":"IFERROR(IF($E14+Стъпка>КраенЧас,\"\",$E14+Стъпка),\"\")","v":"09:00:00"}]
[{"$nulls":4},{"$f":"IFERROR(IF($E15+Стъпка>КраенЧас,\"\",$E15+Стъпка),\"\")","v":"09:15:00"}]
[{"$nulls":4},{"$f":"IFERROR(IF($E16+Стъпка>КраенЧас,\"\",$E16+Стъпка),\"\")","v":"09:30:00"}]
[{"$nulls":4},{"$f":"IFERROR(IF($E17+Стъпка>КраенЧас,\"\",$E17+Стъпка),\"\")","v":"09:45:00"}]
[{"$nulls":4},{"$f":"IFERROR(IF($E18+Стъпка>КраенЧас,\"\",$E18+Стъпка),\"\")","v":"10:00:00"}]
[{"$nulls":4},{"$f":"IFERROR(IF($E19+Стъпка>КраенЧас,\"\",$E19+Стъпка),\"\")","v":"10:15:00"}]
[{"$nulls":4},{"$f":"IFERROR(IF($E20+Стъпка>КраенЧас,\"\",$E20+Стъпка),\"\")","v":"10:30:00"}]
[{"$nulls":4},{"$f":"IFERROR(IF($E21+Стъпка>КраенЧас,\"\",$E21+Стъпка),\"\")","v":"10:45:00"}]
[{"$nulls":4},{"$f":"IFERROR(IF($E22+Стъпка>КраенЧас,\"\",$E22+Стъпка),\"\")","v":"11:00:00"}]
[{"$nulls":4},{"$f":"IFERROR(IF($E23+Стъпка>КраенЧас,\"\",$E23+Стъпка),\"\")","v":"11:15:00"}]
[{"$nulls":4},{"$f":"IFERROR(IF($E24+Стъпка>КраенЧас,\"\",$E24+Стъпка),\"\")","v":"11:30:00"}]
[{"$nulls":4},{"$f":"IFERROR(IF($E25+Стъпка>КраенЧас,\"\",$E25+Стъпка),\"\")","v":"11:45:00"}]
[{"$nulls":4},{"$f":"IFERROR(IF($E26+Стъпка>КраенЧас,\"\",$E26+Стъпка),\"\")","v":"12:00:00"}]
[{"$nulls":4},{"$f":"IFERROR(IF($E27+Стъпка>КраенЧас,\"\",$E27+Стъпка),\"\")","v":"12:15:00"}]
[{"$nulls":4},{"$f":"IFERROR(IF($E28+Стъпка>КраенЧас,\"\",$E28+Стъпка),\"\")","v":"12:30:00"}]
[{"$nulls":4},{"$f":"IFERROR(IF($E29+Стъпка>КраенЧас,\"\",$E29+Стъпка),\"\")","v":"12:45:00"}]
[{"$nulls":4},{"$f":"IFERROR(IF($E30+Стъпка>КраенЧас,\"\",$E30+Стъпка),\"\")","v":"13:00:00"}]
[{"$nulls":4},{"$f":"IFERROR(IF($E31+Стъпка>КраенЧас,\"\",$E31+Стъпка),\"\")","v":"13:15:00"}]
[{"$nulls":4},{"$f":"IFERROR(IF($E32+Стъпка>КраенЧас,\"\",$E32+Стъпка),\"\")","v":"13:30:00"}]
[{"$nulls":4},{"$f":"IFERROR(IF($E33+Стъпка>КраенЧас,\"\",$E33+Стъпка),\"\")","v":"13:45:00"}]
[{"$nulls":4},{"$f":"IFERROR(IF($E34+Стъпка>КраенЧас,\"\",$E34+Стъпка),\"\")","v":"14:00:00"}]
[{"$nulls":4},{"$f":"IFERROR(IF($E35+Стъпка>КраенЧас,\"\",$E35+Стъпка),\"\")","v":"14:15:00"}]
[{"$nulls":4},{"$f":"IFERROR(IF($E36+Стъпка>КраенЧас,\"\",$E36+Стъпка),\"\")","v":"14:30:00"}]
[{"$nulls":4},{"$f":"IFERROR(IF($E37+Стъпка>КраенЧас,\"\",$E37+Стъпка),\"\")","v":"14:45:00"}]
[{"$nulls":4},{"$f":"IFERROR(IF($E38+Стъпка>КраенЧас,\"\",$E38+Стъпка),\"\")","v":"15:00:00"}]
[{"$nulls":4},{"$f":"IFERROR(IF($E39+Стъпка>КраенЧас,\"\",$E39+Стъпка),\"\")","v":"15:15:00"}]
[{"$nulls":4},{"$f":"IFERROR(IF($E40+Стъпка>КраенЧас,\"\",$E40+Стъпка),\"\")","v":"15:30:00"}]
[{"$nulls":4},{"$f":"IFERROR(IF($E41+Стъпка>КраенЧас,\"\",$E41+Стъпка),\"\")","v":"15:45:00"}]
[{"$nulls":4},{"$f":"IFERROR(IF($E42+Стъпка>КраенЧас,\"\",$E42+Стъпка),\"\")","v":"16:00:00"}]
[{"$nulls":4},{"$f":"IFERROR(IF($E43+Стъпка>КраенЧас,\"\",$E43+Стъпка),\"\")","v":"16:15:00"}]
[{"$nulls":4},{"$f":"IFERROR(IF($E44+Стъпка>КраенЧас,\"\",$E44+Стъпка),\"\")","v":"16:30:00"}]
[{"$nulls":4},{"$f":"IFERROR(IF($E45+Стъпка>КраенЧас,\"\",$E45+Стъпка),\"\")","v":"16:45:00"}]
[{"$nulls":4},{"$f":"IFERROR(IF($E46+Стъпка>КраенЧас,\"\",$E46+Стъпка),\"\")","v":"17:00:00"}]
[{"$nulls":4},{"$f":"IFERROR(IF($E47+Стъпка>КраенЧас,\"\",$E47+Стъпка),\"\")","v":"17:15:00"}]
[{"$nulls":4},{"$f":"IFERROR(IF($E48+Стъпка>КраенЧас,\"\",$E48+Стъпка),\"\")","v":"17:30:00"}]
[{"$nulls":4},{"$f":"IFERROR(IF($E49+Стъпка>КраенЧас,\"\",$E49+Стъпка),\"\")","v":"17:45:00"}]
[{"$nulls":4},{"$f":"IFERROR(IF($E50+Стъпка>КраенЧас,\"\",$E50+Стъпка),\"\")","v":"18:00:00"}]
[{"$nulls":4},{"$f":"IFERROR(IF($E51+Стъпка>КраенЧас,\"\",$E51+Стъпка),\"\")","v":"18:15:00"}]
[{"$nulls":4},{"$f":"IFERROR(IF($E52+Стъпка>КраенЧас,\"\",$E52+Стъпка),\"\")","v":"18:30:00"}]
[{"$nulls":4},{"$f":"IFERROR(IF($E53+Стъпка>КраенЧас,\"\",$E53+Стъпка),\"\")","v":"18:45:00"}]
[{"$nulls":4},{"$f":"IFERROR(IF($E54+Стъпка>КраенЧас,\"\",$E54+Стъпка),\"\")","v":"19:00:00"}]
[{"$nulls":4},{"$f":"IFERROR(IF($E55+Стъпка>КраенЧас,\"\",$E55+Стъпка),\"\")","v":"19:15:00"}]
[{"$nulls":4},{"$f":"IFERROR(IF($E56+Стъпка>КраенЧас,\"\",$E56+Стъпка),\"\")","v":"19:30:00"}]
[{"$nulls":4},{"$f":"IFERROR(IF($E57+Стъпка>КраенЧас,\"\",$E57+Стъпка),\"\")","v":"19:45:00"}]
[{"$nulls":4},{"$f":"IFERROR(IF($E58+Стъпка>КраенЧас,\"\",$E58+Стъпка),\"\")","v":"20:00:00"}]
[{"$nulls":4},{"$f":"IFERROR(IF($E59+Стъпка>КраенЧас,\"\",$E59+Стъпка),\"\")","v":"20:15:00"}]
[{"$nulls":4},{"$f":"IFERROR(IF($E60+Стъпка>КраенЧас,\"\",$E60+Стъпка),\"\")","v":"20:30:00"}]
[{"$nulls":4},{"$f":"IFERROR(IF($E61+Стъпка>КраенЧас,\"\",$E61+Стъпка),\"\")","v":"20:45:00"}]
[{"$nulls":4},{"$f":"IFERROR(IF($E62+Стъпка>КраенЧас,\"\",$E62+Стъпка),\"\")","v":"21:00:00"}]
[{"$nulls":4},{"$f":"IFERROR(IF($E63+Стъпка>КраенЧас,\"\",$E63+Стъпка),\"\")","v":""}]
[{"$nulls":4},{"$f":"IFERROR(IF($E64+Стъпка>КраенЧас,\"\",$E64+Стъпка),\"\")","v":""}]
[{"$nulls":4},{"$f":"IFERROR(IF($E65+Стъпка>КраенЧас,\"\",$E65+Стъпка),\"\")","v":""}]
[{"$nulls":4},{"$f":"IFERROR(IF($E66+Стъпка>КраенЧас,\"\",$E66+Стъпка),\"\")","v":""}]
[{"$nulls":4},{"$f":"IFERROR(IF($E67+Стъпка>КраенЧас,\"\",$E67+Стъпка),\"\")","v":""}]
[{"$nulls":4},{"$f":"IFERROR(IF($E68+Стъпка>КраенЧас,\"\",$E68+Стъпка),\"\")","v":""}]
[{"$nulls":4},{"$f":"IFERROR(IF($E69+Стъпка>КраенЧас,\"\",$E69+Стъпка),\"\")","v":""}]
[{"$nulls":4},{"$f":"IFERROR(IF($E70+Стъпка>КраенЧас,\"\",$E70+Стъпка),\"\")","v":""}]
[{"$nulls":4},{"$f":"IFERROR(IF($E71+Стъпка>КраенЧас,\"\",$E71+Стъпка),\"\")","v":""}]
[{"$nulls":4},{"$f":"IFERROR(IF($E72+Стъпка>КраенЧас,\"\",$E72+Стъпка),\"\")","v":""}]
[{"$nulls":4},{"$f":"IFERROR(IF($E73+Стъпка>КраенЧас,\"\",$E73+Стъпка),\"\")","v":""}]
[{"$nulls":4},{"$f":"IFERROR(IF($E74+Стъпка>КраенЧас,\"\",$E74+Стъпка),\"\")","v":""}]